bitfinex/quotes_ETHUSD_20240821
["timestamp","ask_amount","ask_price","bid_price","bid_amount"]
[1724264167538,3.0,2630.5,2629.6,3.80274]
[1724264167539,2.4392,2630.3,2630.1,3.80201]
[1724264168842,2.4392,2630.3,2630.2,3.80199]
[1724264169040,2.4392,2630.3,2630.1,3.80201]
[1724264169800,2.4392,2630.3,2629.9,3.80229]
[1724264170448,2.4392,2630.3,2630.0,3.80218]
[1724264171226,2.4392,2630.3,2630.0,7.60438]
[1724264171626,2.4392,2630.3,2630.0,3.80218]
[1724264171862,2.4392,2630.3,2630.0,7.60437]
[1724264172231,2.4392,2630.3,2630.0,3.80218]
[1724264173014,2.4392,2630.3,2630.0,7.60437]
[1724264173213,2.4392,2630.3,2630.1,3.80208]
[1724264173412,2.68312,2630.3,2630.1,3.80208]
[1724264175331,2.4392,2630.3,2630.2,3.80199]
[1724264180371,2.3336,2630.6,2629.8,3.898]
[1724264180518,2.3336,2630.6,2630.5,3.80155]
[1724264180723,2.3336,2630.6,2630.2,3.80191]
[1724264180724,2.3336,2630.9,2630.8,3.80112]
[1724264182414,2.4497,2631.2,2631.1,3.80068]
[1724264182666,2.4497,2631.6,2631.3,3.80038]
[1724264182868,2.4497,2631.6,2631.4,3.80017]
[1724264183219,11.23830967,2632.0,2631.5,3.80011]
[1724264183220,2.4497,2631.8,2631.5,3.80011]
[1724264183481,2.4497,2631.8,2631.7,3.79982]
[1724264183773,9.76003967,2632.0,2631.8,3.79966]
[1724264183973,9.76003967,2632.0,2631.6,7.59981]
[1724264183974,11.96204364,2632.0,2631.6,7.59981]
[1724264184339,11.96204364,2632.0,2631.7,3.7998]
[1724264184857,11.96204364,2632.0,2631.8,3.79967]
[1724264185170,9.76003967,2632.0,2631.8,3.79967]
[1724264185964,2.3212,2632.0,2631.8,3.79967]
[1724264186270,2.2519,2632.3,2631.8,7.59924]
[1724264186438,5.2519,2632.3,2631.8,7.59924]
[1724264187957,8.86785597,2632.3,2631.9,3.79949]
[1724264188159,2.2519,2632.3,2632.0,3.79929]
[1724264188359,7.43883967,2632.4,2632.0,3.79929]
[1724264188360,7.43883967,2632.4,2632.2,3.7991]
[1724264188821,7.43883967,2632.4,2632.0,3.79929]
[1724264189024,7.43883967,2632.4,2632.1,3.79922]
[1724264189225,6.05042,2632.6,2632.1,3.79922]
[1724264189527,8.07917697,2632.6,2632.1,3.79922]
[1724264191628,8.07917697,2632.6,2632.0,7.59859]
[1724264191828,8.07917697,2632.6,2632.0,3.79929]
[1724264192024,3.79895,2632.3,2631.6,3.898]
[1724264192263,6.19145,2632.1,2631.5,3.80004]
[1724264192572,3.0,2632.0,2631.5,7.60005]
[1724264192780,3.0,2632.0,2631.5,3.80002]
[1724264192984,3.0,2632.0,2631.3,3.80032]
[1724264192985,3.79973,2631.8,2631.3,3.80032]
[1724264193635,7.5995,2631.8,2631.3,3.80032]
[1724264193869,3.79973,2631.8,2631.3,3.80032]
[1724264194274,3.79973,2631.8,2631.1,3.80061]
[1724264194275,3.80004,2631.6,2631.1,3.8006]
[1724264194581,7.60009,2631.6,2631.1,3.8006]
[1724264195141,3.80004,2631.6,2631.1,3.8006]
[1724264196305,3.80004,2631.6,2631.1,7.60121]
[1724264196452,2.760373,2631.7,2631.2,3.80047]
[1724264196453,6.18022,2631.7,2631.2,3.80047]
[1724264196649,5.4908,2632.0,2631.1,3.898]
[1724264196986,2.4908,2632.0,2631.7,7.59948]
[1724264197517,2.4908,2632.0,2631.8,3.79965]
[1724264197849,2.4908,2632.0,2631.7,3.79973]
[1724264198048,2.4908,2632.0,2631.7,7.59948]
[1724264198374,2.4908,2632.0,2631.8,3.79965]
[1724264199109,2.4908,2632.0,2631.9,3.79953]
[1724264199267,5.4878,2632.3,2631.9,7.59906]
[1724264199468,5.4878,2632.3,2631.9,3.79953]
[1724264199469,2.4878,2632.3,2631.9,3.79953]
[1724264199785,2.4878,2632.3,2632.1,3.79924]
[1724264200348,2.4878,2632.3,2631.9,7.59885]
[1724264200551,2.4878,2632.3,2631.9,3.7994]
[1724264200998,2.4878,2632.3,2631.7,3.79973]
[1724264200999,3.79918,2632.2,2631.7,3.79973]
[1724264201150,6.28676,2632.3,2631.8,3.79964]
[1724264201350,6.28676,2632.3,2631.7,3.79973]
[1724264202479,6.28676,2632.3,2631.8,3.79959]
[1724264203155,2.3866,2632.0,2631.5,3.79999]
[1724264203566,2.3866,2632.0,2631.7,7.59962]
[1724264203761,2.3866,2632.0,2631.9,3.79953]
[1724264204202,9.73523967,2632.3,2632.1,3.79923]
[1724264204502,9.73523967,2632.3,2632.2,3.7991]
[1724264204503,7.43883967,2632.3,2632.2,3.7991]
[1724264205211,22.85662,2632.8,2632.5,3.79867]
[1724264205212,12.26,2632.8,2632.5,3.79867]
[1724264205504,2.2964,2632.9,2632.6,3.79846]
[1724264205707,2.2964,2632.9,2632.5,3.79867]
[1724264206002,2.2964,2632.9,2632.5,3.79858]
[1724264206207,2.2964,2632.9,2632.6,3.79852]
[1724264206416,2.2964,2632.9,2632.5,3.79858]
[1724264206596,2.2964,2632.9,2632.7,3.79837]
[1724264206751,2.2964,2632.9,2632.8,3.79823]
[1724264207052,7.43883967,2633.2,2633.0,3.79792]
[1724264207053,9.71713967,2633.2,2633.0,3.79792]
[1724264208372,9.71713967,2633.2,2632.8,3.79812]
[1724264208696,9.71713967,2633.2,2632.9,3.798]
[1724264208901,9.71713967,2633.2,2633.0,3.79794]
[1724264209109,9.71713967,2633.2,2633.0,7.59588]
[1724264209250,9.71713967,2633.2,2633.0,3.79794]
[1724264209651,2.3492,2633.5,2632.8,3.79818]
[1724264209961,2.3492,2633.5,2633.2,3.79757]
[1724264214662,2.3492,2633.5,2633.0,3.79783]
[1724264214863,3.79738,2633.4,2632.8,3.79816]
[1724264215063,4.527448,2633.4,2632.8,3.79816]
[1724264215302,2.4359,2633.3,2632.6,7.59682]
[1724264215507,3.79773,2633.2,2632.6,3.79839]
[1724264215959,2.4359,2633.1,2632.2,3.799]
[1724264216249,2.367,2632.6,2632.2,3.799]
[1724264216404,2.367,2632.6,2631.8,7.59915]
[1724264216409,6.16559,2632.6,2631.8,7.59915]
[1724264216610,2.367,2632.3,2631.8,3.79954]
[1724264216861,3.79918,2632.2,2631.6,3.79987]
[1724264217019,0.616618,2632.1,2631.6,7.59976]
[1724264217218,2.367,2632.3,2631.9,3.79941]
[1724264218048,2.367,2632.3,2631.9,7.59886]
[1724264218447,2.367,2632.3,2631.9,3.79941]
[1724264219869,2.367,2632.3,2631.7,7.59943]
[1724264220069,0.616583,2632.2,2631.8,3.79966]
[1724264220972,2.367,2632.3,2631.9,3.7995]
[1724264221466,3.79912,2632.2,2631.7,3.79969]
[1724264221872,2.367,2632.3,2632.0,3.79937]
[1724264223425,2.367,2632.3,2632.0,7.59868]
[1724264223629,2.6037,2632.3,2631.9,3.79943]
[1724264224769,2.6037,2632.3,2631.8,3.79962]
[1724264225123,2.6037,2632.3,2631.8,7.59922]
[1724264225323,2.6037,2632.3,2631.9,3.79953]
[1724264225555,2.367,2632.3,2631.9,3.79953]
[1724264225766,2.367,2632.3,2631.9,3.79944]
[1724264226079,2.367,2632.3,2631.9,7.5989]
[1724264226433,6.16596,2632.3,2631.9,3.79944]
[1724264226631,6.16596,2632.3,2631.7,3.79972]
[1724264226970,7.462433,2632.3,2631.8,3.79967]
[1724264227294,7.462433,2632.3,2631.1,7.1278]
[1724264227295,2.367,2632.3,2632.0,3.79927]
[1724264228175,2.367,2632.3,2631.9,3.79945]
[1724264228790,2.367,2632.3,2632.0,3.79938]
[1724264229088,2.367,2632.3,2632.1,3.7992]
[1724264229295,2.367,2632.3,2632.2,3.7991]
[1724264229499,2.367,2632.3,2632.1,3.79915]
[1724264229786,2.367,2632.3,2631.9,3.79945]
[1724264230134,2.367,2632.3,2632.1,3.79913]
[1724264230984,3.0,2632.6,2632.5,3.79867]
[1724264230985,2.3288,2632.6,2632.5,3.79867]
[1724264231190,1.58069816,2633.0,2632.7,3.79828]
[1724264231191,2.3475,2633.0,2632.7,3.79828]
[1724264232035,2.3475,2633.0,2632.5,7.59715]
[1724264232235,2.3475,2633.0,2632.5,3.79853]
[1724264232992,2.3475,2633.0,2632.6,3.79844]
[1724264233194,2.3475,2633.0,2632.5,3.79853]
[1724264233487,2.3475,2633.0,2632.3,3.79882]
[1724264233488,6.14568,2632.9,2632.3,3.79882]
[1724264233830,2.3475,2632.8,2632.4,3.79873]
[1724264234069,2.3475,2632.8,2631.9,3.79947]
[1724264234070,2.3475,2632.8,2632.7,3.79838]
[1724264235731,2.4599,2633.1,2632.7,3.79838]
[1724264236835,2.4599,2633.1,2632.7,3.79829]
[1724264239478,3.82953997,2633.1,2632.7,3.79829]
[1724264239678,3.82953997,2633.1,2632.7,7.59659]
[1724264239929,2.4599,2633.1,2632.7,3.79829]
[1724264242878,2.4599,2633.1,2632.8,3.79819]
[1724264243833,2.4599,2633.1,2632.7,3.79829]
[1724264244787,6.25771,2633.1,2632.7,3.79829]
[1724264245119,6.25771,2633.1,2632.1,3.79917]
[1724264245120,3.79846,2632.7,2632.2,0.59434031]
[1724264245435,2.4788,2632.8,2632.0,3.79938]
[1724264245743,2.4788,2632.8,2631.8,6.79953]
[1724264246036,2.4788,2632.8,2632.6,3.79842]
[1724264246180,2.4788,2632.8,2632.6,3.79845]
[1724264246384,2.4788,2632.8,2632.7,3.79838]
[1724264246631,2.4788,2632.8,2632.7,7.59676]
[1724264247330,2.4788,2632.8,2632.7,3.79838]
[1724264249133,2.4788,2632.8,2632.6,3.79852]
[1724264251390,2.4788,2632.8,2632.7,3.79838]
[1724264253314,2.4788,2632.8,2632.6,3.79851]
[1724264253485,2.4788,2632.8,2632.4,3.79872]
[1724264254106,3.79824,2632.8,2632.4,3.79872]
[1724264254419,2.2713,2632.7,2632.3,3.79895]
[1724264254919,2.469,2632.5,2631.7,3.79981]
[1724264255121,2.469,2632.5,2632.2,3.79902]
[1724264255304,2.469,2632.5,2632.4,3.79881]
[1724264255634,2.469,2632.5,2632.4,7.59762]
[1724264256325,2.469,2632.5,2632.4,3.79881]
[1724264257607,2.469,2632.5,2632.2,3.79905]
[1724264257935,2.469,2632.5,2632.1,3.79913]
[1724264258122,2.469,2632.5,2632.2,3.79906]
[1724264259732,2.469,2632.5,2632.2,7.59812]
[1724264260610,2.469,2632.5,2631.8,3.79966]
[1724264260611,2.3718,2632.4,2631.8,3.79965]
[1724264261008,2.3718,2632.3,2632.0,3.79936]
[1724264262221,2.3718,2632.3,2632.2,3.7991]
[1724264263945,9.01953783,2632.6,2632.5,3.79867]
[1724264264160,3.0,2632.9,2632.5,3.79867]
[1724264264161,1.58069816,2632.8,2632.5,3.79867]
[1724264264552,2.4303,2632.7,2632.6,7.59704]
[1724264265471,2.4303,2632.7,2632.6,3.79852]
[1724264266433,2.4303,2632.7,2632.3,3.79895]
[1724264266632,4.01099816,2632.7,2632.3,3.79895]
[1724264266850,6.05015,2632.6,2632.2,3.79906]
[1724264267052,2.2516,2632.3,2631.9,3.79942]
[1724264267811,2.2516,2632.3,2631.8,3.79959]
[1724264267812,2.3821,2632.2,2631.8,3.79959]
[1724264268452,6.14619,2632.1,2631.6,3.79989]
[1724264268652,2.961519,2632.1,2631.8,3.79963]
[1724264268850,2.3469,2632.1,2631.8,3.79963]
[1724264269052,2.3469,2632.1,2631.8,3.79961]
[1724264269354,2.3469,2632.1,2631.6,7.59973]
[1724264269555,2.3469,2632.1,2631.6,3.79985]
[1724264269750,2.3469,2632.1,2631.9,3.79953]
[1724264269954,2.3469,2632.1,2631.7,7.5995]
[1724264270338,2.3469,2632.1,2631.7,7.59944]
[1724264270524,2.4939,2632.0,2631.6,3.79993]
[1724264270729,2.4939,2632.0,2631.7,3.79979]
[1724264270930,6.29332,2632.0,2631.6,3.79996]
[1724264271224,5.37981816,2632.2,2631.1,3.8006]
[1724264271225,2.4939,2631.9,2631.1,3.8006]
[1724264271634,2.4939,2631.3,2630.8,3.80109]
[1724264272144,2.4939,2631.3,2630.7,3.80119]
[1724264272339,2.4939,2631.3,2630.8,3.80101]
[1724264272555,2.4939,2631.3,2630.7,3.80119]
[1724264272773,2.4364,2631.1,2630.5,3.80144]
[1724264272977,2.4364,2631.1,2630.6,3.80139]
[1724264273395,2.4364,2631.1,2630.5,7.60289]
[1724264273396,2.3076,2631.0,2630.5,7.60289]
[1724264273700,2.3076,2631.0,2630.5,3.80144]
[1724264273701,2.3076,2630.9,2630.5,3.80144]
[1724264274697,2.3076,2630.9,2630.5,3.894]
[1724264274856,3.0,2631.4,2631.1,3.80058]
[1724264274857,2.475,2631.3,2631.1,3.80058]
[1724264275289,2.475,2631.3,2631.1,7.60114]
[1724264275517,2.475,2631.3,2631.2,3.80054]
[1724264276188,2.475,2631.3,2631.2,7.60108]
[1724264276535,6.1493,2632.0,2631.4,3.8002]
[1724264276695,2.3498,2631.8,2631.4,3.8002]
[1724264278287,6.14959,2631.8,2631.2,3.80054]
[1724264278518,6.764549,2631.8,2631.2,3.80054]
[1724264278822,2.3498,2631.8,2631.4,3.80025]
[1724264279177,2.3498,2631.8,2631.5,3.80003]
[1724264279723,2.3498,2631.8,2631.4,3.80024]
[1724264279921,2.3498,2631.8,2631.4,7.60048]
[1724264280231,2.3498,2631.8,2631.5,3.80008]
[1724264280832,2.3498,2631.8,2631.7,3.79982]
[1724264282138,2.3498,2631.8,2631.4,3.80017]
[1724264282427,2.3498,2631.8,2631.2,3.80046]
[1724264282588,6.14955,2631.8,2631.3,3.80032]
[1724264283745,2.3498,2631.8,2631.4,3.80024]
[1724264283926,2.3498,2631.8,2631.4,7.60035]
[1724264284245,2.3498,2631.8,2631.5,3.80011]
[1724264284399,2.3498,2631.8,2631.4,3.80017]
[1724264285796,2.3126,2631.5,2631.0,7.60147]
[1724264286055,2.3126,2631.5,2631.3,3.80031]
[1724264286403,2.3126,2631.5,2631.4,3.80025]
[1724264286817,2.3126,2631.5,2631.4,7.6005]
[1724264287022,2.4169,2631.9,2631.5,3.80004]
[1724264287306,4.08242197,2631.9,2631.5,3.80004]
[1724264287503,2.4169,2631.9,2631.8,3.79968]
[1724264288121,2.4169,2631.9,2631.6,3.79983]
[1724264288445,2.4169,2631.9,2631.6,3.79996]
[1724264288607,2.4169,2631.9,2631.5,3.8]
[1724264288808,2.4169,2631.9,2631.5,7.60002]
[1724264289349,2.4169,2631.9,2631.5,3.8]
[1724264289535,2.4169,2631.9,2631.5,7.60004]
[1724264289857,2.4169,2631.9,2631.6,3.79996]
[1724264290506,2.4169,2631.9,2631.8,7.59936]
[1724264290815,2.3633,2632.4,2632.1,3.79921]
[1724264291220,2.3633,2632.4,2632.1,7.59838]
[1724264291459,2.3633,2632.4,2632.1,3.79917]
[1724264292358,2.3633,2632.4,2631.8,3.79967]
[1724264292563,0.53633,2632.3,2632.0,3.79937]
[1724264292761,0.53633,2632.3,2631.8,7.59924]
[1724264293062,2.3823,2632.2,2631.8,3.79957]
[1724264293378,2.3823,2632.2,2632.0,3.79932]
[1724264294436,2.3823,2632.2,2632.1,3.79924]
[1724264296727,2.3823,2632.2,2632.0,7.59871]
[1724264299530,2.3823,2632.2,2632.0,3.79929]
[1724264300772,2.3823,2632.2,2631.8,3.79956]
[1724264300974,2.62053,2632.2,2631.7,3.79982]
[1724264301175,2.4637,2632.0,2631.6,3.79988]
[1724264301427,2.4637,2632.0,2631.8,3.79967]
[1724264302145,2.4637,2632.0,2631.4,3.894]
[1724264302146,2.4637,2632.0,2631.9,7.59906]
[1724264303087,2.4637,2632.0,2631.9,3.79953]
[1724264303487,2.4637,2632.0,2631.4,7.69418]
[1724264303488,2.4637,2632.0,2631.6,3.7999]
[1724264304347,2.4637,2632.0,2631.8,3.79957]
[1724264304699,2.4637,2632.0,2631.9,3.79953]
[1724264305029,2.4637,2632.0,2631.9,7.59906]
[1724264305207,2.3846,2632.3,2632.2,3.79907]
[1724264310463,2.3846,2632.3,2632.2,7.59817]
[1724264311601,2.3846,2632.3,2632.1,3.79923]
[1724264311899,2.3846,2632.3,2631.9,7.59885]
[1724264312119,2.3698,2632.2,2631.5,3.80001]
[1724264312454,2.4839,2632.0,2631.6,3.79988]
[1724264312753,2.4839,2632.0,2631.7,3.7998]
[1724264312898,2.4839,2632.0,2631.5,3.8]
[1724264313153,2.4839,2631.8,2631.4,3.80023]
[1724264313297,2.4839,2631.8,2631.3,3.80038]
[1724264313528,2.4839,2631.8,2631.7,3.79982]
[1724264313730,0.23846,2632.2,2631.4,3.80018]
[1724264313731,2.3034,2632.4,2632.0,3.79938]
[1724264313954,2.4938,2632.2,2631.8,3.79956]
[1724264314250,2.4938,2632.2,2631.9,3.7995]
[1724264314394,2.4938,2632.2,2631.8,3.79956]
[1724264314597,2.4938,2632.2,2631.7,3.79981]
[1724264314850,2.4938,2632.1,2631.6,3.79988]
[1724264315018,2.4938,2632.0,2631.6,3.79988]
[1724264315205,2.4938,2632.0,2631.6,7.59977]
[1724264315404,2.4938,2632.0,2631.6,7.59976]
[1724264315656,2.4938,2632.0,2631.6,3.79988]
[1724264315843,0.694538,2631.9,2631.6,7.59977]
[1724264316049,0.694538,2631.9,2631.7,3.79981]
[1724264316233,2.4938,2632.0,2631.7,3.79981]
[1724264316956,2.4938,2632.0,2631.8,3.79967]
[1724264317161,2.4938,2632.0,2631.8,3.7996]
[1724264317343,2.4938,2632.0,2631.8,3.79955]
[1724264318173,2.4938,2632.0,2631.9,7.59906]
[1724264318329,2.3909,2632.4,2632.1,3.79924]
[1724264318662,2.3909,2632.4,2632.1,7.5984]
[1724264318960,2.3909,2632.4,2632.1,3.79916]
[1724264319466,2.3909,2632.4,2632.2,3.799]
[1724264320462,3.53194378,2632.4,2632.0,3.79928]
[1724264320666,2.2758,2632.3,2632.0,3.79928]
[1724264321937,2.2758,2632.3,2632.1,3.79923]
[1724264323060,2.2758,2632.3,2632.1,7.59837]
[1724264323357,2.2758,2632.3,2632.1,3.79914]
[1724264323876,2.2758,2632.3,2632.2,3.7991]
[1724264324074,11.29133783,2632.6,2632.3,3.79895]
[1724264324240,9.71063967,2632.6,2632.4,3.79873]
[1724264324769,2.2718,2632.6,2632.5,7.59734]
[1724264325064,2.4518,2632.9,2632.7,3.7983]
[1724264325575,4.03249816,2632.9,2632.5,7.59713]
[1724264325858,4.03249816,2632.9,2632.6,3.79851]
[1724264326060,4.03249816,2632.9,2632.7,3.79836]
[1724264326266,2.4518,2632.9,2632.7,3.79836]
[1724264326722,2.4518,2632.9,2632.5,3.79853]
[1724264326918,5.7583586,2632.9,2632.5,3.79853]
[1724264327154,2.427,2632.8,2632.5,7.59708]
[1724264327353,2.427,2632.8,2632.6,3.7985]
[1724264327718,2.427,2632.8,2632.7,3.79838]
[1724264328425,1.58069816,2633.3,2632.6,7.69244]
[1724264328625,1.1541,2633.7,2633.6,7.59416]
[1724264328835,1.1541,2633.7,2633.6,13.00127724]
[1724264329583,1.1541,2633.7,2633.6,16.79835724]
[1724264330091,1.1541,2633.7,2633.6,15.28524]
[1724264330622,3.6493,2634.3,2634.1,3.79628]
[1724264330837,3.6493,2634.3,2634.0,3.79644]
[1724264331070,0.36493,2634.2,2634.0,3.79644]
[1724264331372,3.6493,2634.3,2634.0,3.79644]
[1724264332288,3.6493,2634.3,2633.9,3.79658]
[1724264332892,3.6493,2634.3,2633.9,7.59315]
[1724264333191,3.6493,2634.3,2633.8,3.79675]
[1724264333397,7.44546,2634.3,2633.3,3.894]
[1724264333543,8.190006,2634.3,2633.6,3.79694]
[1724264334259,4.393846,2634.3,2633.8,3.79677]
[1724264334447,8.189926,2634.3,2633.8,3.79677]
[1724264334650,8.189926,2634.3,2633.8,3.7967]
[1724264334880,8.189926,2634.3,2633.8,7.5934]
[1724264335363,1.17975065,2634.2,2633.8,3.7967]
[1724264335759,1.17975065,2634.2,2633.8,7.59341]
[1724264336044,1.17975065,2634.2,2633.9,3.79664]
[1724264336795,1.17975065,2634.2,2633.8,3.7967]
[1724264337005,1.17975065,2634.2,2633.7,3.79691]
[1724264337291,2.2703,2633.7,2633.3,3.79743]
[1724264337490,2.2703,2633.7,2633.4,3.79734]
[1724264338050,2.2703,2633.7,2633.5,3.79722]
[1724264338393,2.2703,2633.7,2633.6,7.59416]
[1724264341054,2.4895,2633.9,2633.8,3.79671]
[1724264341352,7.43883967,2634.0,2633.9,3.79665]
[1724264341678,2.4895,2634.2,2634.0,3.79647]
[1724264342273,2.4895,2634.2,2633.8,3.79671]
[1724264342274,1.1541,2634.3,2634.2,7.59242]
[1724264342700,1.1541,2634.3,2634.2,11.38863]
[1724264343404,0.90301684,2634.3,2634.2,17.11764]
[1724264343615,1.1741,2635.0,2634.6,11.38692]
[1724264343751,1.1741,2635.0,2634.6,11.48528]
[1724264343950,1.1741,2635.0,2634.6,7.59128]
[1724264344789,3.5737,2635.0,2634.6,7.59128]
[1724264345557,3.5737,2635.0,2634.6,3.79564]
[1724264346395,3.5737,2635.0,2634.6,7.59128]
[1724264346594,1.1741,2635.0,2634.6,7.59128]
[1724264348142,2.4159,2634.8,2634.6,3.79564]
[1724264349334,2.4159,2634.8,2634.6,7.59128]
[1724264349744,2.4159,2634.8,2634.6,3.79564]
[1724264350550,2.4159,2634.8,2634.6,7.59128]
[1724264350772,2.4159,2634.8,2634.6,3.79564]
[1724264351239,2.2941,2634.9,2634.6,7.59128]
[1724264351547,2.2941,2634.9,2634.6,3.79564]
[1724264351720,2.2941,2634.9,2634.6,7.59128]
[1724264353720,1.1741,2635.0,2634.6,11.38692]
[1724264354579,1.1741,2635.0,2634.6,15.18256]
[1724264354716,7.8e-06,2634.7,2634.6,20.66536]
[1724264355053,7.8e-06,2635.0,2634.9,21.28955]
[1724264355192,0.005,2636.5,2636.4,7.5861]
[1724264355393,0.005,2636.5,2636.4,17.11215]
[1724264356133,1e-05,2636.5,2636.4,20.9052]
[1724264356446,1e-05,2636.5,2636.4,17.11215]
[1724264357011,1e-05,2636.5,2636.4,7.5861]
[1724264357723,1e-05,2636.5,2636.4,11.37915]
[1724264357938,1e-05,2636.5,2636.4,17.11215]
[1724264358132,1e-05,2636.5,2636.4,17.81215]
[1724264358440,1e-05,2636.5,2636.4,17.11215]
[1724264361013,1e-05,2636.5,2636.4,13.3191]
[1724264361927,1e-05,2636.5,2636.4,17.11215]
[1724264362543,1e-05,2636.5,2636.4,21.6052]
[1724264362701,1e-05,2636.5,2636.4,17.81215]
[1724264362906,0.00895649,2636.8,2636.7,15.87044]
[1724264363121,6.49e-06,2636.8,2636.7,19.80114]
[1724264363301,6.49e-06,2636.8,2636.7,20.41830793]
[1724264363521,6.49e-06,2636.8,2636.7,24.21091793]
[1724264363721,2.41776555,2638.0,2637.1,0.7]
[1724264363962,2.41776555,2638.0,2637.2,8.1338]
[1724264365833,2.41776555,2638.0,2637.2,11.9257]
[1724264366086,2.41776555,2638.0,2637.2,8.1338]
[1724264366403,2.41776555,2638.0,2637.2,8.75096793]
[1724264366559,2.41776555,2638.0,2637.2,8.1338]
[1724264366758,6.20851555,2638.0,2637.2,8.1338]
[1724264367068,6.20851555,2638.0,2637.2,7.5838]
[1724264367575,3.79089,2637.9,2637.2,7.5838]
[1724264367973,2.41776555,2638.0,2637.2,7.5838]
[1724264368401,2.41776555,2638.0,2637.2,12.6257]
[1724264368604,0.00246555,2638.0,2637.2,18.3504]
[1724264368813,7.8e-06,2637.3,2637.2,22.523]
[1724264369009,0.00246555,2638.0,2637.9,11.37267]
[1724264369310,0.00246555,2638.0,2637.9,11.92267]
[1724264369485,0.00246555,2638.0,2637.9,8.13178]
[1724264369871,0.00246555,2638.0,2637.9,8.74894793]
[1724264370069,0.00246555,2638.0,2637.9,12.53983793]
[1724264370380,0.00246555,2638.0,2637.9,8.74894793]
[1724264371606,0.00246555,2638.0,2637.9,12.53983793]
[1724264372242,0.00246555,2638.0,2637.9,8.13178]
[1724264372356,0.00246555,2638.0,2637.9,7.58178]
[1724264373107,0.00246555,2638.0,2637.9,8.19894793]
[1724264373317,0.00246555,2638.0,2637.9,7.58178]
[1724264373812,0.00246555,2638.0,2637.9,3.79089]
[1724264373961,3.791,2637.9,2636.8,0.7]
[1724264374160,0.23475211,2638.0,2637.5,3.79142]
[1724264374599,0.23475211,2638.0,2637.6,3.79131]
[1724264375264,0.00246555,2638.0,2637.9,3.79089]
[1724264375461,0.00246555,2638.0,2637.9,7.58178]
[1724264375772,0.00246555,2638.0,2637.7,3.79105]
[1724264376171,0.00246555,2638.0,2637.5,3.79133]
[1724264376389,0.00246555,2638.0,2637.5,3.79138]
[1724264376589,0.00246555,2638.0,2637.5,7.58277]
[1724264376590,0.61381611,2638.0,2637.5,7.58277]
[1724264376771,0.61381611,2638.0,2637.3,3.79174]
[1724264376973,0.00246555,2638.0,2637.6,3.79118]
[1724264377179,0.00246555,2638.0,2637.4,7.58304]
[1724264377395,0.00246555,2638.0,2637.5,3.79146]
[1724264377591,0.00246555,2638.0,2637.3,3.79171]
[1724264377810,0.00246555,2638.0,2637.9,3.79089]
[1724264377964,0.00246555,2638.0,2637.7,3.79106]
[1724264378529,0.00246555,2638.0,2637.8,3.7909]
[1724264378877,0.00246555,2638.0,2637.6,3.79124]
[1724264379077,0.00246555,2638.0,2637.6,3.79122]
[1724264379489,0.00246555,2638.0,2637.8,7.58189]
[1724264379665,0.00246555,2638.0,2637.9,3.79089]
[1724264380399,0.00246555,2638.0,2637.8,3.79094]
[1724264380565,0.00246555,2638.0,2637.9,7.58178]
[1724264381175,0.00246555,2638.0,2637.9,11.37267]
[1724264381381,0.0001726,2638.0,2637.9,11.37267]
[1724264382013,0.0001726,2638.0,2637.9,7.58178]
[1724264382469,0.0001726,2638.0,2637.9,3.79089]
[1724264383221,2.4790726,2638.0,2637.9,3.79089]
[1724264383391,2.4790726,2638.0,2637.8,3.79101]
[1724264383569,2.4790726,2638.0,2637.6,3.79125]
[1724264383570,2.4790726,2638.0,2637.6,3.79118]
[1724264383769,2.4790726,2638.0,2637.9,7.58178]
[1724264384710,0.0001726,2638.0,2637.9,8.17486872]
[1724264385136,0.0001726,2638.0,2637.9,4.38397872]
[1724264385540,0.0001726,2638.0,2637.9,8.17486872]
[1724264386035,0.0001726,2638.0,2637.9,8.72486872]
[1724264386642,0.0001726,2638.0,2637.9,8.13178]
[1724264386815,0.0001726,2638.0,2637.9,8.17481889]
[1724264387211,0.0001726,2638.0,2637.9,4.38392889]
[1724264387712,0.0001726,2638.0,2637.9,8.17481889]
[1724264387912,0.0001726,2638.0,2637.9,4.38392889]
[1724264388292,0.0001726,2638.0,2637.9,8.17481889]
[1724264388495,0.0001726,2638.0,2637.9,4.38392889]
[1724264388729,2.3546726,2638.0,2637.9,4.38392889]
[1724264389618,2.3546726,2638.0,2637.9,8.17481889]
[1724264389929,2.3546726,2638.0,2637.9,8.17487474]
[1724264390130,2.3546726,2638.0,2637.9,4.38398474]
[1724264390131,0.0001726,2638.0,2637.9,4.38398474]
[1724264391057,0.0001726,2638.0,2637.9,8.17487474]
[1724264391244,0.0001726,2638.0,2637.9,4.38398474]
[1724264391457,0.0001726,2638.0,2637.9,0.59309474]
[1724264391458,2.3546726,2638.0,2637.9,0.59309474]
[1724264391607,2.59013986,2638.0,2637.9,0.59309474]
[1724264391808,2.3546726,2638.0,2637.9,3.79089]
[1724264392024,2.3546726,2638.0,2637.9,4.38402584]
[1724264392434,0.0001726,2638.0,2637.9,11.96580584]
[1724264392639,0.0001726,2638.0,2637.9,13.15160569]
[1724264392821,0.0001726,2638.0,2637.9,13.70160569]
[1724264393023,0.0001726,2638.0,2637.9,8.74354776]
[1724264393225,0.0001726,2638.0,2637.9,7.58178]
[1724264393424,0.0001726,2638.0,2637.9,11.9656958]
[1724264393850,0.0001726,2638.0,2637.9,12.5156958]
[1724264394741,0.0001726,2638.0,2637.9,13.78432772]
[1724264394937,2.4794,2638.5,2638.4,7.58034]
[1724264395154,2.4794,2638.5,2638.4,4.3831958]
[1724264395970,2.4794,2638.5,2638.4,8.1733658]
[1724264396270,2.4794,2638.5,2638.4,7.58034]